bitfinex-derivatives/quotes_SOLF0:USTF0_20251207
["timestamp","ask_amount","ask_price","bid_price","bid_amount"]
[1765114811440,0.05346317,131.64,131.61,3.35887234]
[1765114816537,0.05346317,131.64,131.61,10.19647234]
[1765114816737,0.05346317,131.64,131.62,3.31]
[1765114817431,0.05346317,131.64,131.62,10.1471]
[1765114817835,0.05346317,131.64,131.63,3.16]
[1765114822137,0.00346317,131.64,131.63,3.16]
[1765114822333,6.8343,131.68,131.63,3.16]
[1765114822740,9.3043,131.68,131.63,3.16]
[1765114823443,0.05710821,131.67,131.65,3.16]
[1765114827149,0.05710821,131.67,131.65,9.9953]
[1765114827350,0.05710821,131.67,131.66,3.16]
[1765114828657,67.55,131.73,131.68,3.16]
[1765114828862,2.47,131.72,131.68,3.16]
[1765114829762,0.05535706,131.71,131.69,3.21386321]
[1765114836468,2.52535706,131.71,131.69,3.21386321]
[1765114836668,0.05535706,131.71,131.69,3.21386321]
[1765114837574,0.05535706,131.71,131.69,10.04726321]
[1765114837871,0.05535706,131.71,131.7,3.16]
[1765114839267,0.05535706,131.71,131.69,0.05386321]
[1765114839568,2.52535706,131.71,131.69,0.05386321]
[1765114844680,2.52535706,131.71,131.69,3.21386321]
[1765114844881,0.05535706,131.71,131.69,3.21386321]
[1765114845781,0.05535706,131.71,131.7,3.16]
[1765114850078,65.06,131.73,131.71,3.13]
[1765114851283,65.11553046,131.73,131.71,3.13]
[1765114851584,65.11553046,131.73,131.72,3.13]
[1765114851977,0.05553046,131.73,131.72,3.13]
[1765114852179,2.52,131.78,131.75,3.13]
[1765114853184,2.52,131.78,131.75,3.17839009]
[1765114853185,2.57595304,131.78,131.75,3.17839009]
[1765114856885,0.05595304,131.78,131.75,10.00869009]
[1765114857086,0.05595304,131.78,131.76,3.06]
[1765114859079,0.05595304,131.78,131.76,9.8896]
[1765114859274,0.05595304,131.78,131.77,3.06]
[1765114860583,67.54,131.81,131.77,3.06]
[1765114860979,2.52,131.8,131.75,3.06]
[1765114861695,2.57036224,131.79,131.76,3.1083065]
[1765114868190,0.05036224,131.79,131.76,3.1083065]
[1765114868396,0.05036224,131.79,131.77,3.06]
[1765114869600,67.52,131.83,131.78,3.06]
[1765114870385,65.0,131.83,131.79,3.06]
[1765114870591,0.05614562,131.82,131.81,3.06]
[1765114872794,65.0,131.86,131.81,3.06]
[1765114873095,67.52,131.86,131.81,3.06]
[1765114873293,67.52,131.86,131.8,0.05258847]
[1765114873294,65.0,131.86,131.82,3.06]
[1765114874002,0.0479648,131.85,131.84,3.06]
[1765114879904,2.5679648,131.85,131.83,0.05255902]
[1765114880104,2.52,131.84,131.77,3.13]
[1765114880309,2.52,131.87,131.8,3.13]
[1765114881011,0.04947139,131.85,131.83,3.13]
[1765114881409,2.56947139,131.85,131.83,3.13]
[1765114882209,0.04947139,131.85,131.83,3.13]
[1765114883509,0.04947139,131.85,131.84,3.13]
[1765114884313,2.56947139,131.85,131.82,3.17861822]
[1765114885412,0.04947139,131.85,131.82,3.17861822]
[1765114891218,2.56947139,131.85,131.82,3.17861822]
[1765114891515,2.56947139,131.85,131.82,0.04861822]
[1765114892512,2.52,131.83,131.82,0.04861822]
[1765114892712,67.48,131.83,131.82,0.04861822]
[1765114894923,2.52,131.83,131.82,0.04861822]
[1765114895219,64.96,131.84,131.82,3.17861822]
[1765114895411,67.48,131.84,131.82,3.17861822]
[1765114895811,2.56947139,131.85,131.82,3.17861822]
[1765114896015,2.56947139,131.85,131.82,0.04861822]
[1765114897727,2.52,131.84,131.82,0.04861822]
[1765114901120,2.52,131.83,131.78,3.13]
[1765114901327,2.52,131.81,131.78,3.13]
[1765114901822,2.52,131.81,131.75,3.13]
[1765114902225,2.571282,131.79,131.77,3.18449047]
[1765114905132,2.571282,131.79,131.77,0.05449047]
[1765114905929,2.571282,131.79,131.77,3.18449047]
[1765114906735,0.051282,131.79,131.77,3.18449047]
[1765114916142,2.571282,131.79,131.77,0.05449047]
[1765114916341,2.571282,131.79,131.77,3.14449047]
[1765114917038,9.399882,131.79,131.77,0.05449047]
[1765114917238,2.52,131.78,131.77,0.05449047]
[1765114918348,9.399882,131.79,131.77,3.14449047]
[1765114918552,6.879882,131.79,131.77,3.14449047]
[1765114918735,71.859882,131.79,131.77,3.14449047]
[1765114920049,0.051282,131.79,131.77,3.14449047]
[1765114920741,64.98,131.83,131.78,3.09]
[1765114921852,0.04835053,131.82,131.8,3.15]
[1765114926339,0.04835053,131.82,131.8,9.9777]
[1765114926541,0.04835053,131.82,131.81,3.15]
[1765114927751,0.04835053,131.82,131.8,3.15]
[1765114927945,2.56835053,131.82,131.79,3.20457575]
[1765114928343,0.04835053,131.82,131.79,3.20457575]
[1765114928548,67.53,131.87,131.81,3.15]
[1765114928953,2.57,131.86,131.81,3.15]
[1765114929548,2.61862684,131.85,131.82,3.19779852]
[1765114930951,9.44422684,131.85,131.82,0.04779852]
[1765114931254,2.57,131.84,131.82,0.04779852]
[1765114934556,64.96,131.83,131.82,0.04779852]
[1765114934756,67.53,131.83,131.82,0.04779852]
[1765114936958,64.96,131.83,131.82,0.04779852]
[1765114937160,64.96,131.83,131.82,3.19779852]
[1765114937758,64.96,131.83,131.82,0.04779852]
[1765114942460,9.44422684,131.85,131.82,0.04779852]
[1765114942663,67.54,131.84,131.82,0.04779852]
[1765114942864,2.58,131.83,131.82,0.04779852]
[1765114946472,2.53,131.82,131.77,3.28]
[1765114947559,2.53,131.8,131.78,0.04836766]
[1765114947868,67.49,131.8,131.78,0.04836766]
[1765114948573,64.96,131.8,131.78,3.32836766]
[1765114948764,67.49,131.8,131.78,3.32836766]
[1765114949573,67.49,131.8,131.78,0.04836766]
[1765114949872,2.53,131.79,131.78,0.04836766]
[1765114974699,2.53,131.79,131.73,6.8314]
[1765114974903,2.52,131.78,131.71,3.3]
[1765114975099,2.52,131.76,131.71,3.3]
[1765114975697,2.52,131.76,131.72,0.0536808]
[1765114975997,2.53,131.74,131.72,3.2736808]
[1765114976503,2.53,131.74,131.72,0.0536808]
[1765114980110,67.49,131.73,131.72,0.0536808]
[1765114981916,2.53,131.72,131.67,3.22]
[1765114982514,2.53,131.72,131.68,3.22]
[1765114982917,0.05793247,131.71,131.7,3.22]
[1765114986821,2.53,131.77,131.71,3.22]
[1765114987316,2.53,131.77,131.73,3.22]
[1765114987812,0.05755034,131.76,131.75,3.22]
[1765114989421,0.05755034,131.76,131.74,0.05312518]
[1765114989721,2.58755034,131.76,131.74,3.27312518]
[1765114990017,2.58755034,131.76,131.74,0.05312518]
[1765114991417,2.58755034,131.76,131.74,3.27312518]
[1765114992223,2.58755034,131.76,131.74,0.05312518]
[1765114995215,9.41775034,131.76,131.74,0.05312518]
[1765114995419,2.53,131.75,131.74,0.05312518]
[1765114996522,2.53,131.74,131.7,3.22]
[1765114996729,2.53,131.73,131.7,3.22]
[1765114997022,2.53,131.73,131.68,3.22]
[1765114997726,2.53,131.71,131.69,0.05113901]
[1765114999725,2.53,131.68,131.63,3.25]
[1765114999929,6.8339,131.69,131.63,3.25]
[1765114999930,2.53,131.66,131.63,3.25]
[1765115000520,2.53,131.66,131.63,3.29942097]
[1765115000727,2.58769182,131.66,131.63,3.29942097]
[1765115004035,2.58769182,131.66,131.63,0.04942097]
[1765115004239,2.58769182,131.66,131.63,3.29942097]
[1765115006434,0.05769182,131.66,131.63,3.29942097]
[1765115012541,0.05769182,131.66,131.65,3.25]
[1765115014238,65.0,131.7,131.65,3.25]
[1765115015238,67.59,131.7,131.65,3.25]
[1765115015438,0.0542942,131.69,131.67,3.25]
[1765115021647,2.6442942,131.69,131.66,3.30524264]
[1765115032355,2.59,131.68,131.66,0.05524264]
[1765115033456,2.59,131.67,131.66,0.05524264]
[1765115036867,9.4259,131.65,131.63,3.09]
[1765115037965,6.88419244,131.65,131.63,3.13923883]
[1765115040267,6.88419244,131.65,131.63,0.04923883]
[1765115040268,2.59,131.64,131.63,0.04923883]
[1765115044369,2.59,131.63,131.61,3.26]
[1765115044562,67.59,131.63,131.61,3.26]
[1765115045364,67.64689799,131.63,131.61,3.31289843]
[1765115045964,0.05689799,131.63,131.61,3.31289843]
[1765115050980,0.05689799,131.63,131.61,10.15049843]
[1765115051168,0.05689799,131.63,131.62,3.26]
[1765115054782,2.59,131.67,131.63,3.26]
[1765115054980,6.8334,131.7,131.63,3.26]
[1765115055175,74.4234,131.7,131.63,3.26]
[1765115055482,2.59,131.69,131.65,3.26]
[1765115055882,0.05115298,131.68,131.67,3.26]
[1765115064988,2.64115298,131.68,131.66,0.04777377]
[1765115065197,2.64115298,131.68,131.62,17.36105031]
[1765115065395,2.59,131.68,131.62,3.36]
[1765115065784,2.54,131.67,131.62,3.36]
[1765115066180,2.59194412,131.66,131.63,3.41563104]
[1765115066791,0.05194412,131.66,131.63,3.41563104]
[1765115069195,0.05194412,131.66,131.63,10.25213104]
[1765115069398,0.05194412,131.66,131.64,3.36]
[1765115071190,0.00194412,131.66,131.64,10.1959]
[1765115071398,65.0,131.7,131.65,3.36]
[1765115071589,2.59,131.73,131.67,3.36]
[1765115072396,2.59,131.73,131.68,3.36]
[1765115072698,0.05545124,131.71,131.7,3.36]
[1765115078996,2.64545124,131.71,131.69,0.04903425]
[1765115084099,2.64545124,131.71,131.69,3.40903425]
[1765115084301,2.64545124,131.71,131.69,0.04903425]
[1765115097107,2.64545124,131.71,131.69,3.19903425]
[1765115099308,2.64545124,131.71,131.69,0.04903425]
[1765115099907,0.05545124,131.71,131.69,3.19903425]
[1765115100813,2.65545124,131.71,131.64,14.00105031]
[1765115101016,2.65545124,131.71,131.63,3.15]
[1765115101215,2.6,131.71,131.63,3.15]
[1765115101717,2.6,131.71,131.65,3.15]
[1765115102011,0.05123457,131.69,131.67,3.20286794]
[1765115103109,2.65123457,131.69,131.67,0.05286794]
[1765115104510,2.65123457,131.69,131.67,3.20286794]
[1765115106023,0.05123457,131.69,131.67,3.20286794]
[1765115112226,0.05123457,131.69,131.68,3.15]
[1765115112422,64.96,131.74,131.68,3.15]
[1765115113421,0.05142535,131.72,131.71,3.15]
[1765115118339,2.64142535,131.72,131.7,0.05787265]
[1765115119135,2.64142535,131.72,131.7,3.36787265]
[1765115125947,0.05142535,131.72,131.7,3.36787265]
[1765115127144,0.05142535,131.72,131.71,3.31]
[1765115129838,67.55,131.76,131.73,3.31]
[1765115130042,2.59,131.75,131.73,3.31]
[1765115130752,2.59,131.76,131.74,3.31]
[1765115130942,0.05823536,131.76,131.74,3.36694748]
[1765115131946,2.64823536,131.76,131.74,3.36694748]
[1765115132256,2.64823536,131.76,131.74,0.05694748]
[1765115133441,2.59,131.75,131.74,0.05694748]
[1765115135852,2.59,131.73,131.7,3.31]
[1765115136849,2.64531432,131.73,131.7,0.05315776]
[1765115137954,2.64531432,131.73,131.7,3.36315776]
[1765115139548,2.64531432,131.73,131.7,0.05315776]
[1765115139549,2.59,131.72,131.7,0.05315776]
[1765115139751,2.59,131.72,131.67,3.31]
[1765115140350,2.59,131.7,131.67,3.31]
[1765115140650,2.64050705,131.7,131.67,3.36446505]
[1765115143349,0.05050705,131.7,131.67,3.36446505]
[1765115144853,2.64050705,131.7,131.67,3.36446505]
[1765115147151,0.05050705,131.7,131.67,3.36446505]
[1765115156059,0.05050705,131.7,131.68,3.3]
[1765115159257,0.05050705,131.7,131.68,10.1339]
[1765115159559,0.05050705,131.7,131.69,3.3]
[1765115160363,2.59,131.74,131.69,3.3]
[1765115161363,0.05692077,131.73,131.71,3.3]
[1765115161562,2.64692077,131.73,131.71,3.3]
[1765115161770,2.64692077,131.73,131.7,0.0583804]
[1765115161771,2.64692077,131.73,131.7,3.3583804]
[1765115164661,0.05692077,131.73,131.7,3.3583804]
[1765115165666,0.05692077,131.73,131.7,10.1913804]
[1765115165863,0.05692077,131.73,131.71,3.3]
[1765115166768,0.05692077,131.73,131.71,10.1324]
[1765115166971,0.05692077,131.73,131.72,3.3]
[1765115168170,64.94,131.76,131.74,3.3]
[1765115169370,64.9879387,131.76,131.74,3.35272387]
[1765115174271,67.6379387,131.76,131.74,3.35272387]
[1765115175162,106.1772,131.85,131.75,3.3]
[1765115175368,2.65,131.84,131.76,3.3]
[1765115176163,2.70552441,131.81,131.79,0.04861872]
[1765115176368,2.69850095,131.81,131.79,3.34861872]
[1765115177267,0.04850095,131.81,131.79,3.34861872]
[1765115178569,0.04850095,131.81,131.79,10.17681872]
[1765115178769,0.04850095,131.81,131.8,3.25]
[1765115191575,2.65,131.84,131.81,3.25]
[1765115192581,2.7075496,131.84,131.82,3.25]
[1765115192776,0.0575496,131.84,131.82,3.30547852]
[1765115194070,2.65,131.88,131.85,3.25]
[1765115195082,2.70618155,131.88,131.85,3.30822204]
[1765115195472,2.70618155,131.88,131.85,6.88332204]
[1765115195783,2.70618155,131.88,131.85,0.05822204]
[1765115197286,2.70618155,131.88,131.86,3.25]
[1765115198890,0.05618155,131.88,131.86,10.0744]
[1765115199087,0.05618155,131.88,131.87,3.25]
[1765115199887,2.70618155,131.88,131.85,3.30822204]
[1765115200590,2.70618155,131.88,131.86,3.25]
[1765115204589,0.05618155,131.88,131.86,3.25]
[1765115204893,0.05618155,131.88,131.87,3.25]
[1765115206396,67.53,131.91,131.88,3.25]
[1765115207295,67.57776921,131.91,131.88,3.30002113]
[1765115208188,0.04776921,131.91,131.88,3.30002113]
[1765115208384,0.04776921,131.91,131.9,3.3]
[1765115208689,2.64,131.95,131.91,3.3]
[1765115209691,2.69216007,131.94,131.92,0.04918377]
[1765115210391,2.64,131.93,131.92,0.04918377]
[1765115213097,4.16,131.93,131.92,0.04918377]
[1765115213298,2.64,131.93,131.92,0.04918377]
[1765115213499,4.16,131.93,131.92,0.04918377]
[1765115214102,2.64,131.93,131.92,0.04918377]
[1765115215498,4.16,131.93,131.92,0.04918377]
[1765115215803,2.64,131.93,131.92,0.04918377]
[1765115216002,2.64,131.92,131.88,3.3]
[1765115216202,67.48,131.92,131.88,3.3]
[1765115216406,2.64,131.91,131.85,10.125]
[1765115216606,2.64,131.91,131.85,3.3]
[1765115216906,2.64,131.9,131.83,6.8261]
[1765115217106,2.64,131.88,131.83,10.1261]
[1765115217297,2.64,131.88,131.85,0.05371773]
[1765115219604,64.84,131.87,131.85,0.05371773]
[1765115219905,2.64,131.86,131.85,0.05371773]
[1765115221309,64.84,131.87,131.85,3.35371773]
[1765115221910,0.0502335,131.89,131.85,3.35371773]
[1765115223612,2.6902335,131.89,131.85,3.35371773]
[1765115223808,2.6902335,131.89,131.85,0.05371773]
[1765115224808,2.64,131.87,131.85,0.05371773]
[1765115227507,67.48,131.86,131.85,0.05371773]
[1765115229312,0.0502335,131.89,131.85,0.05371773]
[1765115229313,2.64,131.88,131.85,3.35371773]
[1765115229503,67.48,131.88,131.85,3.35371773]
[1765115232513,2.64,131.87,131.85,3.35371773]
[1765115232709,0.0502335,131.89,131.85,3.35371773]
[1765115232916,2.6902335,131.89,131.85,3.35371773]
[1765115234517,2.6902335,131.89,131.85,10.17891773]
[1765115235105,2.6902335,131.89,131.85,0.05371773]
[1765115235622,2.64,131.87,131.8,3.3]
[1765115236321,2.59,131.84,131.79,6.8281]
[1765115236522,2.64726575,131.83,131.8,0.05046084]
[1765115236708,0.05726575,131.83,131.8,3.35046084]
[1765115236913,0.05726575,131.83,131.82,3.3]
[1765115237935,2.6,131.87,131.83,3.37]
[1765115238722,67.44,131.88,131.84,3.37]
[1765115238926,0.05501021,131.86,131.84,3.42222207]
[1765115242122,2.65501021,131.86,131.84,3.42222207]
[1765115242321,2.65501021,131.86,131.84,0.05222207]
[1765115246226,2.6,131.85,131.84,0.05222207]
[1765115246622,9.48001021,131.86,131.84,3.42222207]
[1765115246830,9.48001021,131.86,131.84,0.05222207]
[1765115247030,2.6,131.85,131.84,0.05222207]
[1765115249832,2.6,131.84,131.78,3.37]
[1765115250036,2.6,131.83,131.78,3.37]
[1765115250734,2.6,131.81,131.79,0.04921207]
[1765115251125,0.05141423,131.82,131.79,3.41921207]
[1765115251325,0.05141423,131.82,131.8,3.37]
[1765115256552,2.65141423,131.82,131.79,0.04921207]
[1765115256743,2.65141423,131.82,131.79,3.41921207]
[1765115264355,2.65141423,131.82,131.79,0.04921207]
[1765115265552,2.6,131.8,131.79,0.04921207]
[1765115266149,2.6,131.78,131.75,3.37]
[1765115266552,2.6,131.78,131.74,3.37]
[1765115267149,2.6429286,131.77,131.75,0.04912398]
[1765115268251,9.4726286,131.77,131.75,3.09912398]
[1765115268456,0.0529286,131.77,131.75,3.09912398]
[1765115268756,2.6429286,131.77,131.75,0.04912398]
[1765115269657,2.59,131.76,131.75,0.04912398]
[1765115271261,64.94,131.76,131.75,3.09912398]
[1765115273858,67.53,131.76,131.75,0.04912398]
[1765115274466,67.53,131.76,131.66,14.00105031]
[1765115274467,2.59,131.74,131.66,14.00105031]
[1765115274663,2.59,131.74,131.67,3.05]
[1765115275265,9.4215,131.74,131.67,3.05]
[1765115275467,0.05327394,131.72,131.7,3.05]
[1765115276059,0.05327394,131.72,131.71,3.05]
[1765115276268,67.53,131.77,131.71,3.05]
[1765115276762,74.3597,131.77,131.71,3.05]
[1765115277266,0.05170215,131.75,131.74,3.05]
[1765115279777,6.8282,131.8,131.74,3.05]
[1765115280174,9.5282,131.8,131.74,3.05]
[1765115280674,0.05262714,131.78,131.76,3.36821288]
[1765115281461,0.05262714,131.78,131.76,0.04821288]
[1765115281462,2.75262714,131.78,131.76,0.04821288]
[1765115282576,2.7,131.77,131.76,0.04821288]
[1765115282784,9.58182714,131.78,131.76,0.04821288]
[1765115283672,2.7,131.77,131.76,0.04821288]
[1765115287188,2.7,131.74,131.7,3.32]
[1765115287479,2.7,131.71,131.66,3.32]
[1765115288078,9.5334,131.7,131.67,0.05313452]
[1765115288280,2.75190473,131.7,131.67,3.37313452]
[1765115288681,2.75190473,131.7,131.67,0.05313452]
[1765115288876,2.7,131.68,131.67,0.05313452]
[1765115293777,71.8339,131.69,131.67,0.05313452]
[1765115293778,74.5339,131.69,131.67,0.05313452]
[1765115294390,0.05190473,131.7,131.68,3.32]
[1765115294582,65.05190473,131.7,131.68,3.32]
[1765115294984,0.05190473,131.7,131.68,3.32]
[1765115300392,2.74190473,131.7,131.68,3.32]
[1765115300593,0.05190473,131.7,131.68,3.32]
[1765115300985,2.74190473,131.7,131.67,3.21313452]
[1765115301185,2.74190473,131.7,131.67,0.05313452]
[1765115302380,2.74190473,131.7,131.67,3.21313452]
[1765115302584,9.57520473,131.7,131.67,3.21313452]
[1765115304089,6.88520473,131.7,131.67,3.21313452]
[1765115305095,0.05190473,131.7,131.67,3.21313452]
[1765115315196,2.74190473,131.7,131.67,3.21313452]
[1765115315396,2.74190473,131.7,131.67,0.05313452]
[1765115319006,0.05190473,131.7,131.68,3.16]
[1765115319798,2.74190473,131.7,131.68,3.16]
[1765115323107,0.05190473,131.7,131.68,3.16]
[1765115324606,2.74190473,131.7,131.68,3.16]
[1765115325708,2.74190473,131.7,131.67,0.05313452]
[1765115327194,2.69,131.68,131.61,17.16105031]
[1765115327392,2.69,131.68,131.61,3.16]
[1765115328112,2.7,131.65,131.63,0.04795137]
[1765115328311,2.7,131.65,131.63,3.29795137]
[1765115328998,0.05302847,131.66,131.63,10.13455137]
[1765115329303,0.05302847,131.66,131.63,3.29795137]
[1765115330616,0.05302847,131.66,131.65,3.25]
[1765115340015,2.75302847,131.66,131.64,10.136]
[1765115340311,0.05302847,131.66,131.65,3.3]
[1765115341714,2.75302847,131.66,131.63,0.04795137]
[1765115342922,2.75302847,131.66,131.63,3.34795137]
[1765115343307,0.05302847,131.66,131.63,3.34795137]
[1765115344522,0.05302847,131.66,131.64,3.3]
[1765115345325,0.05302847,131.66,131.65,3.3]
[1765115353723,2.7,131.71,131.67,3.3]
[1765115353920,6.8308,131.75,131.67,3.3]
[1765115353921,2.76,131.73,131.67,3.3]
[1765115354824,2.8167867,131.71,131.69,0.04826478]
[1765115355332,2.8167867,131.71,131.69,3.34826478]
[1765115355530,0.0567867,131.71,131.69,3.34826478]
[1765115356133,0.0567867,131.71,131.69,10.18166478]
[1765115356332,0.0567867,131.71,131.7,3.3]
[1765115357122,2.76,131.74,131.7,10.1327]
[1765115357329,67.76,131.75,131.71,3.3]
[1765115358329,0.05291472,131.74,131.72,3.25767895]
[1765115358733,2.80291472,131.74,131.72,3.25767895]
[1765115362431,0.05291472,131.74,131.73,3.2]
[1765115364135,67.73,131.79,131.75,3.2]
[1765115364439,64.98,131.79,131.75,3.2]
[1765115364838,2.75,131.82,131.78,3.2]
[1765115365236,0.05266812,131.81,131.79,3.25006055]
[1765115366742,2.80266812,131.81,131.79,0.05006055]
[1765115369138,0.05266812,131.81,131.79,3.25006055]
[1765115373542,0.05266812,131.81,131.79,10.07826055]
[1765115373840,2.75,131.86,131.8,3.2]
[1765115374845,0.05173124,131.84,131.82,3.25634748]
[1765115377044,0.05173124,131.84,131.83,3.2]
[1765115380054,67.69,131.88,131.84,3.2]
[1765115380754,67.69,131.88,131.85,3.2]
[1765115380954,2.75,131.87,131.85,3.2]
[1765115381142,2.75,131.87,131.85,3.25074455]
[1765115387654,2.75,131.87,131.85,0.05074455]
[1765115395168,2.75,131.87,131.85,3.24074455]
[1765115395568,64.99271625,131.88,131.85,3.24074455]
[1765115395569,0.05271625,131.88,131.85,3.24074455]
[1765115395975,0.05271625,131.88,131.85,10.06584455]
[1765115396177,0.05271625,131.88,131.85,3.24074455]
[1765115396980,0.05271625,131.88,131.87,3.19]
[1765115397982,67.63,131.92,131.89,3.19]
[1765115398679,2.75,131.91,131.89,3.19]
[1765115398880,2.75,131.91,131.89,3.24799076]
[1765115401376,64.88,131.92,131.89,3.24799076]
[1765115401575,67.63,131.92,131.89,3.24799076]
[1765115402182,2.75,131.91,131.89,0.05799076]
[1765115402581,2.75,131.9,131.89,0.05799076]
[1765115403083,2.75,131.87,131.82,3.19]
[1765115403977,0.05022319,131.86,131.83,3.23778607]
[1765115405084,2.80022319,131.86,131.83,3.23778607]
[1765115413793,0.05022319,131.86,131.83,3.23778607]
[1765115414188,0.05022319,131.86,131.85,3.19]
[1765115419298,0.05022319,131.86,131.84,3.34]
[1765115424413,0.05022319,131.86,131.84,10.1657]
[1765115424612,0.05022319,131.86,131.85,3.34]
[1765115434110,0.05022319,131.86,131.84,6.8257]
[1765115434307,2.80022319,131.86,131.84,3.34]
[1765115435717,2.80022319,131.86,131.83,3.38778607]
[1765115438215,0.05022319,131.86,131.83,3.38778607]
[1765115441818,0.05022319,131.86,131.84,3.34]
[1765115442824,0.05022319,131.86,131.85,3.34]
[1765115444824,9.5725,131.91,131.85,3.34]
[1765115445826,0.02190481,131.89,131.87,0.04949194]
[1765115446125,0.02190481,131.89,131.88,3.34]
[1765115460742,2.75,131.93,131.88,3.34]
[1765115461631,2.75,131.93,131.89,3.17]
[1765115461946,2.75,131.93,131.9,3.2271157]
[1765115462539,9.5714,131.93,131.9,3.2271157]
[1765115464340,2.75,131.94,131.9,3.2271157]
[1765115467939,2.75,131.93,131.9,0.0571157]
[1765115468650,2.75,131.91,131.9,0.0571157]
[1765115469748,6.8219,131.92,131.9,0.0571157]
[1765115469947,9.5719,131.92,131.9,0.0571157]
[1765115471752,9.5719,131.92,131.9,3.2271157]
[1765115472348,2.75,131.91,131.9,0.0571157]
[1765115473449,2.75,131.88,131.83,3.17]
[1765115474052,9.574,131.88,131.83,3.17]
[1765115474352,0.04782854,131.87,131.85,3.17]
[1765115486766,2.79782854,131.87,131.85,3.17]
[1765115488264,0.04782854,131.87,131.85,3.17]
[1765115508774,6.8223,131.91,131.85,3.17]
[1765115508982,114.31767268,131.95,131.85,3.17]
[1765115509177,2.8,131.94,131.87,3.31]
[1765115509880,2.8,131.94,131.89,0.0526178]
[1765115510081,2.8,131.94,131.9,3.31]
[1765115511485,2.8,131.93,131.9,3.31]
[1765115514179,2.8,131.95,131.9,3.31]
[1765115514488,2.8,131.95,131.91,3.35903379]
[1765115515881,2.8,131.95,131.87,3.31]
[1765115516186,2.8,131.93,131.87,3.31]
[1765115516386,2.8,131.9,131.85,3.31]
[1765115516578,2.8,131.89,131.85,3.31]
[1765115516778,2.8,131.89,131.83,3.31]
[1765115516979,2.8,131.89,131.85,0.0568647]
[1765115517182,2.85619115,131.87,131.85,0.0568647]
[1765115519988,0.05619115,131.87,131.85,3.3668647]
[1765115522391,2.85619115,131.87,131.85,0.0568647]
[1765115526291,0.05619115,131.87,131.85,3.1968647]
[1765115529393,0.05619115,131.87,131.85,10.0219647]
[1765115529597,0.05619115,131.87,131.86,3.14]
[1765115531396,2.85619115,131.87,131.85,3.1968647]
[1765115531793,2.85619115,131.87,131.85,0.0568647]
[1765115532987,0.05619115,131.87,131.85,3.1968647]
[1765115533590,64.84,131.9,131.85,3.1968647]
[1765115534791,64.84,131.9,131.87,3.14]
[1765115535399,64.84,131.9,131.88,3.14]
[1765115535697,64.84,131.9,131.88,3.19600974]
[1765115535892,2.8,131.93,131.88,3.19600974]
[1765115536793,67.7,131.95,131.88,3.19600974]
[1765115537392,2.86,131.94,131.9,3.14]
[1765115537696,2.86,131.94,131.91,3.13073003]
[1765115540798,2.86,131.94,131.91,0.05073003]
[1765115541099,2.86,131.94,131.91,3.13073003]
[1765115546003,2.86,131.94,131.91,0.05073003]
[1765115547502,2.86,131.93,131.91,0.05073003]
[1765115548210,9.6814,131.93,131.91,0.05073003]
[1765115548396,2.86,131.92,131.86,9.9046]
[1765115549503,2.81,131.89,131.88,0.05331315]
[1765115550497,0.05285983,131.9,131.88,3.13331315]
[1765115550903,2.86285983,131.9,131.88,0.05331315]
[1765115552100,2.86285983,131.9,131.88,3.13331315]
[1765115552604,0.05285983,131.9,131.88,3.13331315]
[1765115555106,2.86285983,131.9,131.88,3.13331315]
[1765115557104,2.86285983,131.9,131.88,0.05331315]
[1765115557299,2.81,131.89,131.88,0.05331315]
[1765115557605,2.81,131.88,131.85,3.08]
[1765115558713,2.81,131.88,131.85,3.132437]
[1765115559503,2.81,131.88,131.85,0.052437]
[1765115559700,2.81,131.88,131.85,3.132437]
[1765115560503,2.81,131.88,131.85,0.052437]